bitfinex/quotes_BTCUSD_20230403
["timestamp","ask_amount","ask_price","bid_price","bid_amount"]
[1680561124420,0.19939886,27876.0,27873.0,0.2852]
[1680561124662,0.19939886,27876.0,27875.0,0.0031]
[1680561124868,0.65236381,27876.0,27875.0,0.0031]
[1680561125084,0.59249701,27876.0,27875.0,0.0031]
[1680561125342,0.59549701,27876.0,27875.0,0.0031]
[1680561125582,0.59549701,27876.0,27871.0,0.20018]
[1680561125583,0.97413362,27876.0,27871.0,0.20018]
[1680561125811,0.23947927,27875.0,27871.0,0.20018]
[1680561126040,0.010762,27874.0,27871.0,0.20018]
[1680561126264,0.19589799,27873.0,27871.0,0.20018]
[1680561126490,0.19948499,27873.0,27871.0,0.20018]
[1680561126938,0.19948499,27873.0,27871.0,0.20006]
[1680561127180,0.020696,27872.0,27870.0,0.00018]
[1680561127404,0.19967808,27871.0,27869.0,0.01284219]
[1680561127895,0.41465478,27870.0,27869.0,0.01284219]
[1680561128118,0.61452697,27870.0,27869.0,0.01284219]
[1680561128565,0.66154497,27870.0,27869.0,0.01284219]
[1680561128790,0.66117397,27870.0,27869.0,0.01684219]
[1680561129032,0.66117397,27870.0,27869.0,0.01284219]
[1680561129261,0.66217397,27870.0,27869.0,0.01684219]
[1680561129486,0.66217397,27870.0,27869.0,0.01284219]
[1680561129487,0.61452697,27870.0,27869.0,0.01284219]
[1680561129734,0.61093897,27870.0,27869.0,0.01284219]
[1680561130423,0.61193897,27870.0,27869.0,0.01684219]
[1680561130647,0.61093897,27870.0,27869.0,0.01284219]
[1680561130874,0.61193897,27870.0,27869.0,0.01684219]
[1680561131105,0.61093897,27870.0,27869.0,0.01284219]
[1680561131332,0.67665087,27870.0,27869.0,0.01684219]
[1680561131796,0.61193897,27870.0,27869.0,0.01684219]
[1680561132020,0.19728419,27870.0,27869.0,0.01684219]
[1680561132258,0.19628419,27870.0,27869.0,0.01284219]
[1680561132944,0.19987219,27870.0,27869.0,0.01284219]
[1680561133608,0.20087219,27870.0,27869.0,0.01684219]
[1680561133832,0.61844543,27870.0,27869.0,0.01284219]
[1680561134053,0.66972743,27870.0,27869.0,0.01684219]
[1680561134723,0.66872743,27870.0,27869.0,0.01284219]
[1680561134957,0.61944543,27870.0,27869.0,0.01684219]
[1680561135594,0.62711836,27870.0,27869.0,0.01684219]
[1680561135794,0.61577468,27870.0,27869.0,0.01684219]
[1680561136139,0.61477468,27870.0,27869.0,0.01284219]
[1680561136348,0.63107468,27870.0,27869.0,0.01284219]
[1680561136787,0.61507468,27870.0,27869.0,0.01284219]
[1680561136998,0.63807468,27870.0,27869.0,0.01284219]
[1680561137207,0.86822375,27870.0,27869.0,0.01284219]
[1680561137429,0.89092375,27870.0,27869.0,2.19e-06]
[1680561137654,1.19022375,27870.0,27869.0,2.19e-06]
[1680561137866,1.21222375,27870.0,27869.0,2.19e-06]
[1680561139191,1.19022375,27870.0,27869.0,2.19e-06]
[1680561139406,1.21722375,27870.0,27869.0,2.19e-06]
[1680561139625,1.19022375,27870.0,27869.0,2.19e-06]
[1680561140043,1.21722375,27870.0,27869.0,2.19e-06]
[1680561140269,1.19022375,27870.0,27869.0,2.19e-06]
[1680561140470,1.21722375,27870.0,27869.0,2.19e-06]
[1680561140679,1.19022375,27870.0,27869.0,2.19e-06]
[1680561140881,1.21722375,27870.0,27869.0,2.19e-06]
[1680561141321,1.19022375,27870.0,27869.0,2.19e-06]
[1680561141539,1.18172375,27870.0,27869.0,2.19e-06]
[1680561141745,0.59865226,27870.0,27869.0,2.19e-06]
[1680561142169,0.32565226,27870.0,27869.0,2.19e-06]
[1680561142375,0.32555226,27870.0,27869.0,2.19e-06]
[1680561142821,0.32555226,27870.0,27869.0,0.141899]
[1680561142822,0.19628419,27870.0,27869.0,0.141899]
[1680561143030,0.22328419,27870.0,27869.0,0.31414878]
[1680561143277,0.19628419,27870.0,27869.0,0.31432878]
[1680561143495,0.19728419,27870.0,27869.0,0.31802878]
[1680561143698,0.001,27870.0,27869.0,0.516879]
[1680561143930,0.05246211,27879.0,27873.0,0.2]
[1680561143931,0.33503471,27879.0,27873.0,0.2]
[1680561144157,0.19570491,27878.0,27876.0,0.2]
[1680561144374,0.19600491,27878.0,27877.0,0.14189681]
[1680561144600,0.65696857,27878.0,27876.0,0.2182]
[1680561145689,0.0023,27878.0,27877.0,0.4674822]
[1680561145939,0.002,27878.0,27877.0,0.4784012]
[1680561146145,0.0003,27881.0,27878.0,0.1]
[1680561146357,0.5806059,27881.0,27878.0,0.0859]
[1680561146592,0.19529717,27881.0,27880.0,0.0859]
[1680561147240,0.0003,27881.0,27880.0,0.0859]
[1680561147477,0.0003,27881.0,27880.0,0.1861]
[1680561147686,0.66416134,27881.0,27880.0,0.1861]
[1680561147904,0.19875452,27881.0,27880.0,0.1002]
[1680561148125,0.20075452,27881.0,27880.0,0.1002]
[1680561148350,0.19875452,27881.0,27880.0,0.1002]
[1680561148594,0.25531451,27881.0,27880.0,0.1032]
[1680561149035,0.19516852,27881.0,27880.0,0.1032]
[1680561149259,0.19516852,27881.0,27880.0,0.50319681]
[1680561150303,0.19516852,27881.0,27880.0,0.1032]
[1680561151213,0.19875452,27881.0,27880.0,0.1032]
[1680561151428,0.19516852,27881.0,27880.0,0.43021227]
[1680561151636,0.21827137,27881.0,27880.0,0.1032]
[1680561151863,0.68319151,27881.0,27880.0,0.1032]
[1680561152090,0.66367466,27881.0,27880.0,0.003]
[1680561152300,0.70817466,27881.0,27880.0,0.003]
[1680561152532,0.70693366,27881.0,27880.0,0.003]
[1680561152742,0.70693366,27881.0,27879.0,0.33065427]
[1680561152959,0.19493283,27880.0,27879.0,0.33065427]
[1680561153180,0.19523283,27880.0,27879.0,0.33065427]
[1680561153844,0.0003,27880.0,27879.0,0.2859]
[1680561154062,0.0003,27884.0,27883.0,0.2]
[1680561154279,0.02288,27887.0,27886.0,0.2]
[1680561154499,0.02318,27887.0,27886.0,0.43917881]
[1680561154711,0.2172768,27887.0,27886.0,0.2859]
[1680561154920,0.24294798,27887.0,27886.0,0.2]
[1680561155579,0.24394798,27887.0,27886.0,0.21]
[1680561155799,0.24294798,27887.0,27886.0,0.2]
[1680561156022,0.24494798,27887.0,27886.0,0.214]
[1680561156223,0.23936298,27887.0,27886.0,0.2]
[1680561156431,0.24136298,27887.0,27886.0,0.214]
[1680561157266,0.2192768,27887.0,27886.0,0.214]
[1680561157715,0.57250151,27887.0,27886.0,0.214]
[1680561157926,0.56891651,27887.0,27886.0,0.214]
[1680561159197,0.2192768,27887.0,27886.0,0.2993]
[1680561159402,0.2192768,27887.0,27886.0,0.214]
[1680561164794,0.2188792,27887.0,27886.0,0.214]
[1680561164995,0.2188792,27887.0,27886.0,0.21406]
[1680561166466,0.2188792,27887.0,27886.0,0.214]
[1680561166896,0.2188792,27887.0,27886.0,0.225107]
[1680561167104,0.2188792,27887.0,27886.0,0.47707826]
[1680561167319,0.0247824,27887.0,27886.0,0.47725826]
[1680561167538,0.0247824,27887.0,27886.0,0.84785441]
[1680561167984,0.0247824,27887.0,27886.0,0.84767441]
[1680561168191,0.0247824,27887.0,27886.0,0.84839441]
[1680561168405,0.0247824,27887.0,27886.0,0.94851441]
[1680561168629,0.0247824,27887.0,27886.0,0.94893441]
[1680561168837,0.0247824,27887.0,27886.0,0.94875441]
[1680561169056,0.0247824,27887.0,27886.0,0.94845441]
[1680561169295,0.0247824,27887.0,27886.0,0.94851441]
[1680561169512,0.0247824,27887.0,27886.0,1.03319441]
[1680561169735,0.0247824,27887.0,27886.0,1.03283441]
[1680561170019,0.0247824,27887.0,27886.0,1.01442441]
[1680561170237,0.0247824,27887.0,27886.0,1.01496441]
[1680561170453,0.0247824,27887.0,27886.0,1.01502441]
[1680561171702,0.0247824,27887.0,27886.0,0.92972441]
[1680561171975,0.0247824,27887.0,27886.0,0.92978441]
[1680561172221,0.0247824,27887.0,27886.0,0.93008441]
[1680561172482,0.06018489,27887.0,27886.0,0.437587]
[1680561172737,0.59327272,27887.0,27886.0,0.01418]
[1680561172987,0.58968772,27887.0,27886.0,0.014]
[1680561173744,0.55428523,27887.0,27886.0,0.014]
[1680561175197,0.2188792,27887.0,27886.0,0.014]
[1680561175457,0.2188792,27887.0,27886.0,1.014]
[1680561176850,0.2188792,27887.0,27886.0,1.16206384]
[1680561177067,0.2188792,27887.0,27886.0,1.257058]
[1680561177068,0.0247824,27887.0,27886.0,1.257058]
[1680561177318,0.0247824,27887.0,27886.0,1.436178]
[1680561177592,0.0247824,27887.0,27886.0,1.437138]
[1680561177804,0.0247824,27887.0,27886.0,1.71837759]
[1680561178018,0.0247824,27887.0,27886.0,1.71891759]
[1680561178232,0.0247824,27887.0,27886.0,1.71879759]
[1680561178656,0.0227824,27887.0,27886.0,1.70443759]
[1680561178870,0.0237824,27887.0,27886.0,1.73279759]
[1680561179085,0.0227824,27887.0,27886.0,1.70485759]
[1680561179296,0.0237824,27887.0,27886.0,1.73339759]
[1680561179512,0.0227824,27887.0,27886.0,1.70509759]
[1680561179729,0.2178792,27887.0,27886.0,1.73309759]
[1680561179943,0.2178792,27887.0,27886.0,1.349328]
[1680561180161,0.2178792,27887.0,27886.0,1.33756]
[1680561180369,0.2178792,27887.0,27886.0,1.349309]
[1680561180584,0.2178792,27887.0,27886.0,1.349189]
[1680561180796,0.2178792,27887.0,27886.0,1.33738]
[1680561181005,0.2178792,27887.0,27886.0,1.49931231]
[1680561181215,0.2178792,27887.0,27886.0,1.49925231]
[1680561181453,0.2178792,27887.0,27886.0,1.49943231]
[1680561181664,0.2178792,27887.0,27886.0,1.49931231]
[1680561182102,0.2178792,27887.0,27886.0,1.49937231]
[1680561182777,0.2178792,27887.0,27886.0,1.49925231]
[1680561182996,0.2178792,27887.0,27886.0,1.49943231]
[1680561183265,0.2178792,27887.0,27886.0,1.49931231]
[1680561183477,0.0237824,27887.0,27886.0,1.51718231]
[1680561183693,0.0237824,27887.0,27886.0,1.51682231]
[1680561183907,0.0237824,27887.0,27886.0,1.51688231]
[1680561184129,0.0237824,27887.0,27886.0,1.51634231]
[1680561184345,0.0237824,27887.0,27886.0,1.51646231]
[1680561184609,0.0237824,27887.0,27886.0,1.51634231]
[1680561184812,0.0227824,27887.0,27886.0,1.48810231]
[1680561185032,0.0237824,27887.0,27886.0,1.51598231]
[1680561185245,0.0237824,27887.0,27886.0,1.51610231]
[1680561185462,0.0237824,27887.0,27886.0,1.51568231]
[1680561185678,0.0227824,27887.0,27886.0,1.48768231]
[1680561185904,0.0237824,27887.0,27886.0,1.61556231]
[1680561186121,0.0227824,27887.0,27886.0,1.558305]
[1680561186340,0.0227824,27887.0,27886.0,1.586065]
[1680561186341,0.0237824,27887.0,27886.0,1.586065]
[1680561186572,0.0237824,27887.0,27886.0,1.585825]
[1680561186794,0.0237824,27887.0,27886.0,1.585885]
[1680561187019,0.0237824,27887.0,27886.0,1.585525]
[1680561187241,0.0237824,27887.0,27886.0,1.94046516]
[1680561187460,0.0003,27893.0,27887.0,0.111226]
[1680561187689,0.19371107,27892.0,27888.0,0.17139781]
[1680561187941,0.19371107,27892.0,27890.0,0.2]
[1680561188172,0.19371107,27892.0,27891.0,0.012003]
[1680561188394,1.48407063,27892.0,27891.0,0.12234]
[1680561188619,1.48407063,27892.0,27891.0,0.12252]
[1680561188620,0.19371107,27892.0,27891.0,0.12252]
[1680561188845,0.19471107,27892.0,27891.0,0.133661]
[1680561189068,0.19471107,27892.0,27890.0,0.1921892]
[1680561189312,0.19471107,27892.0,27889.0,0.00354]
[1680561189313,0.31220847,27892.0,27889.0,0.00354]
[1680561189537,0.63325735,27892.0,27891.0,0.028]
[1680561189848,0.60982867,27892.0,27891.0,0.028]
[1680561190049,0.61341367,27892.0,27891.0,0.028]
[1680561190274,0.61341367,27892.0,27888.0,0.16567595]
[1680561190513,1.29043091,27891.0,27888.0,0.16441595]
[1680561190744,0.19371107,27890.0,27888.0,0.16561595]
[1680561191196,0.19371107,27890.0,27888.0,0.16573595]
[1680561191414,0.19371107,27890.0,27888.0,0.16441595]
[1680561191634,0.19371107,27890.0,27888.0,0.19041595]
[1680561191874,0.19371107,27890.0,27888.0,0.16441595]
[1680561192086,0.001,27890.0,27888.0,0.026]
[1680561192316,0.001,27890.0,27889.0,0.54000728]
[1680561192957,0.001,27890.0,27889.0,0.53998528]
[1680561193186,0.0003,27891.0,27889.0,0.52828728]
[1680561193401,0.001,27890.0,27889.0,0.53994328]
[1680561193629,0.0003,27891.0,27889.0,0.53994328]
[1680561193630,0.0003,27891.0,27889.0,0.55628728]
[1680561194058,0.0003,27891.0,27890.0,0.011763]
[1680561194274,0.001,27891.0,27890.0,0.011763]
[1680561194498,0.46773499,27892.0,27890.0,0.011763]
[1680561194707,0.001,27891.0,27890.0,0.011763]
[1680561194936,0.66125322,27892.0,27890.0,0.011763]
[1680561195150,0.69387357,27892.0,27889.0,0.52828728]
[1680561196009,0.001,27891.0,27890.0,0.028]
[1680561196252,0.69387357,27892.0,27889.0,0.52828728]
[1680561196461,0.69487357,27892.0,27889.0,0.55628728]
[1680561197118,0.69487357,27892.0,27890.0,1.0]
[1680561197581,0.23080903,27892.0,27890.0,1.0]
[1680561197795,0.23080903,27892.0,27891.0,0.011677]
[1680561198009,0.23080903,27892.0,27890.0,1.17887117]
[1680561198645,0.22980903,27892.0,27890.0,1.17887117]
[1680561198861,0.23080903,27892.0,27890.0,1.20687117]
[1680561199289,0.23080903,27892.0,27891.0,0.31074168]
[1680561200181,0.22980903,27892.0,27891.0,0.31074168]
[1680561200394,0.23080903,27892.0,27891.0,0.33942468]
[1680561201750,0.19481823,27892.0,27891.0,0.50762468]
[1680561202188,0.19351823,27892.0,27891.0,0.47962468]
[1680561202413,0.19451823,27892.0,27891.0,0.60762468]
[1680561202628,0.19451823,27892.0,27891.0,0.50762468]
[1680561203282,0.19351823,27892.0,27891.0,0.47962468]
[1680561203498,0.19451823,27892.0,27891.0,0.50762468]
[1680561203735,0.19451823,27892.0,27891.0,0.60750508]
[1680561204828,0.19351823,27892.0,27891.0,0.57950508]
[1680561205059,0.19351823,27892.0,27891.0,0.60750508]
[1680561205339,0.19451823,27892.0,27891.0,0.60750508]
[1680561205999,0.001,27892.0,27891.0,0.71073108]
[1680561208189,0.001,27892.0,27891.0,0.411291]
[1680561210463,0.001,27892.0,27891.0,0.789291]
[1680561210686,0.02788,27897.0,27895.0,0.378]
[1680561210910,0.02788,27897.0,27896.0,0.38890645]
[1680561211143,0.02788,27897.0,27896.0,0.48890645]
[1680561211374,0.02788,27897.0,27896.0,0.53963199]
[1680561211587,0.02788,27897.0,27896.0,0.250496]
[1680561211812,0.02788,27897.0,27896.0,0.82493351]
[1680561212025,0.02788,27897.0,27896.0,0.85293351]
[1680561212933,0.02788,27897.0,27896.0,0.450496]
[1680561213125,0.02788,27897.0,27896.0,0.536296]
[1680561213362,0.02788,27897.0,27896.0,0.98275109]
[1680561213586,0.02788,27897.0,27896.0,0.572176]
[1680561213812,0.02788,27897.0,27896.0,0.95797805]
[1680561214050,0.02788,27897.0,27896.0,0.92997805]
[1680561214272,0.02788,27897.0,27896.0,0.95797805]
[1680561214970,0.02788,27897.0,27896.0,0.246806]
[1680561215206,0.40496625,27897.0,27896.0,0.210926]
[1680561215425,0.02788,27897.0,27896.0,0.48314196]
[1680561216839,0.02818,27897.0,27896.0,0.45514196]
[1680561217053,0.02818,27897.0,27896.0,0.48314196]
[1680561217270,0.02788,27897.0,27896.0,0.45514196]
[1680561217492,0.02788,27897.0,27896.0,0.48314196]
[1680561218381,0.02788,27897.0,27896.0,0.50106496]
[1680561220859,0.02788,27897.0,27896.0,0.350429]
[1680561221050,0.02788,27897.0,27896.0,0.74948464]
[1680561221303,0.02788,27897.0,27896.0,0.450429]
[1680561221528,0.02788,27897.0,27896.0,0.88592904]
[1680561222041,0.02788,27897.0,27896.0,2.03643637]
[1680561222257,0.02788,27897.0,27896.0,2.13486156]
[1680561222486,0.02788,27897.0,27896.0,2.11683048]
[1680561222721,0.02788,27897.0,27896.0,1.86653956]
[1680561222956,0.02788,27897.0,27896.0,1.89471956]
[1680561223182,0.02788,27897.0,27896.0,1.86671956]
[1680561223411,8e-05,27897.0,27896.0,1.90321956]
[1680561223640,0.2,27900.0,27899.0,0.7152002]
[1680561223861,0.2,27900.0,27899.0,2.23022208]
[1680561224311,0.2,27900.0,27899.0,2.24825316]
[1680561225225,0.2,27900.0,27899.0,2.65164408]
[1680561225687,0.2,27900.0,27899.0,2.67964408]
[1680561226583,0.2,27900.0,27899.0,2.65164408]
[1680561226829,0.2,27900.0,27899.0,2.49201408]
[1680561227060,0.2,27900.0,27899.0,2.25181208]
[1680561227280,0.2,27900.0,27899.0,2.22381208]
[1680561227503,0.2,27900.0,27899.0,2.40301208]
[1680561228455,0.2,27900.0,27899.0,2.26031208]
[1680561228900,0.2,27900.0,27899.0,2.25961208]
[1680561229578,0.2,27900.0,27899.0,2.31372336]
[1680561230260,0.2,27900.0,27899.0,2.33175444]
[1680561230960,0.2,27900.0,27899.0,2.55404536]
[1680561231416,0.02288,27908.0,27902.0,0.8931462]
[1680561231417,0.00027,27903.0,27902.0,0.8931462]
[1680561231667,0.02288,27908.0,27902.0,1.93272676]
[1680561231932,0.02288,27908.0,27903.0,1.05106256]
[1680561232209,0.02288,27908.0,27903.0,1.06898156]
[1680561232457,0.02288,27908.0,27903.0,1.08701264]
[1680561232985,0.02288,27908.0,27906.0,0.550504]
[1680561233287,0.02288,27908.0,27907.0,0.95078656]
[1680561233483,0.02288,27908.0,27907.0,1.24785256]
[1680561233929,0.02288,27908.0,27907.0,1.42605256]
[1680561234595,0.02288,27908.0,27907.0,1.47208364]
[1680561234846,0.02288,27908.0,27907.0,1.45405256]
[1680561235278,0.39106194,27914.0,27907.0,1.45405256]
[1680561235279,0.17683274,27916.0,27911.0,0.089622]
[1680561235501,0.00021,27918.0,27913.0,0.029175]
[1680561235720,0.02288,27921.0,27913.0,0.029175]
[1680561235721,1.28946467,27916.0,27915.0,0.029247]
[1680561235957,0.21331569,27917.0,27915.0,0.029247]
[1680561235958,0.21352569,27917.0,27915.0,0.029247]
[1680561236235,0.02288,27917.0,27916.0,0.010681]
[1680561236678,0.02288,27917.0,27916.0,0.028591]
[1680561237111,0.02288,27917.0,27916.0,0.54643576]
[1680561237619,0.02288,27917.0,27916.0,0.57443576]
[1680561237835,0.02288,27917.0,27916.0,0.54643576]
[1680561238049,0.02288,27917.0,27916.0,0.228791]
[1680561238962,0.02288,27917.0,27916.0,0.6808151]
[1680561239960,0.02288,27917.0,27916.0,0.228911]
[1680561240185,0.02288,27917.0,27916.0,0.228791]
[1680561240402,0.02288,27917.0,27916.0,0.58588696]
[1680561241868,0.02288,27917.0,27916.0,0.228791]
[1680561242432,0.02288,27917.0,27916.0,0.65125323]
[1680561243144,0.02288,27917.0,27916.0,0.65143323]
[1680561243392,0.39554384,27917.0,27916.0,0.2002]
[1680561243626,0.52235427,27917.0,27916.0,0.028]
[1680561243881,0.2,27914.0,27911.0,0.00012]
[1680561244115,0.2,27911.0,27908.0,0.45529094]
[1680561244343,0.2,27911.0,27908.0,0.45547094]
[1680561244344,0.0003,27909.0,27908.0,0.45547094]
[1680561244567,0.2114137,27909.0,27908.0,0.45547094]
[1680561244789,0.19157002,27909.0,27908.0,0.45547094]
[1680561245235,0.19157002,27909.0,27908.0,0.00018]
[1680561245451,0.23942002,27909.0,27908.0,0.00012]
[1680561245671,0.23942002,27909.0,27908.0,0.00918]
[1680561245896,0.44864729,27909.0,27908.0,0.00918]
[1680561246125,0.31018875,27909.0,27908.0,0.018]
[1680561246365,0.473881,27909.0,27908.0,0.018]
[1680561246634,0.49372468,27909.0,27908.0,0.018]
[1680561246865,0.41719527,27909.0,27908.0,0.018]
[1680561247093,0.40511227,27909.0,27908.0,0.018]
[1680561247320,0.40869527,27909.0,27908.0,0.018]
[1680561247994,0.40511227,27909.0,27908.0,0.018]
[1680561248219,0.24142002,27909.0,27908.0,0.47225058]
[1680561248444,0.24112002,27909.0,27908.0,0.47237058]
[1680561248664,0.23965502,27909.0,27908.0,0.47237058]
[1680561248887,0.23765502,27909.0,27908.0,0.00012]
[1680561249108,0.19157002,27909.0,27906.0,0.40747413]
[1680561249335,0.0003,27907.0,27906.0,0.40747413]
[1680561249570,0.0003,27907.0,27906.0,0.00018]
[1680561249787,0.2,27911.0,27908.0,0.46728158]
[1680561249788,0.5177,27911.0,27908.0,0.46728158]
[1680561250016,0.5177,27911.0,27908.0,0.60917839]
[1680561250017,0.19114164,27910.0,27908.0,0.60917839]
[1680561250255,0.49114164,27910.0,27909.0,0.056]
[1680561250521,0.00021,27911.0,27909.0,0.49215015]
[1680561250739,0.00021,27914.0,27910.0,0.011409]
[1680561250961,0.48243334,27916.0,27911.0,0.053793]
[1680561251184,0.48243334,27916.0,27912.0,0.0553]
[1680561251185,0.17513334,27916.0,27912.0,0.0553]
[1680561251419,0.22309,27917.0,27912.0,0.0553]
[1680561251420,0.02309,27917.0,27913.0,0.58527681]
[1680561251640,0.02288,27917.0,27914.0,0.047001]
[1680561251877,0.02288,27917.0,27915.0,0.53139181]
[1680561252117,0.00015,27921.0,27919.0,0.378]
[1680561252344,0.02288,27923.0,27921.0,0.41388]
[1680561252571,0.02288,27923.0,27922.0,1.24009637]
[1680561252822,0.02288,27923.0,27922.0,1.42421637]
[1680561253049,0.02288,27923.0,27922.0,1.69030074]
[1680561253278,0.02288,27923.0,27922.0,0.95759018]
[1680561253514,0.02488,27923.0,27922.0,0.9515591]
[1680561253959,0.01488,27923.0,27922.0,0.71051807]
[1680561254190,0.01488,27923.0,27922.0,0.65679707]
[1680561254464,0.01488,27923.0,27922.0,0.67470407]
[1680561254688,0.01488,27923.0,27922.0,0.70130054]
[1680561255589,0.17331953,27933.0,27922.0,0.295095]
[1680561255807,0.17331953,27933.0,27925.0,0.2]
[1680561255808,0.0074,27931.0,27925.0,0.2]
[1680561256040,1.28890714,27930.0,27926.0,0.14189681]
[1680561256266,1.47767533,27930.0,27928.0,0.0688]
[1680561256491,0.00018,27933.0,27929.0,0.27889781]
[1680561256725,0.002,27933.0,27930.0,0.15293581]
[1680561256971,0.02288,27934.0,27931.0,0.12953]
[1680561257192,1.28872948,27933.0,27932.0,0.01111]
[1680561257408,1.28872948,27933.0,27932.0,0.1719]
[1680561257857,0.02288,27934.0,27932.0,0.2399]
[1680561258112,0.02288,27934.0,27933.0,0.43200184]
[1680561258376,1.31160707,27934.0,27933.0,0.60372184]
[1680561258593,1.31160707,27934.0,27933.0,0.59230284]
[1680561258810,1.31160707,27934.0,27933.0,0.189799]
[1680561259030,1.31260707,27934.0,27933.0,0.256799]
[1680561259252,0.02288,27934.0,27933.0,0.256799]
[1680561259469,0.02488,27934.0,27933.0,0.268588]
[1680561259687,0.02488,27934.0,27933.0,0.70502245]
[1680561260115,0.02488,27934.0,27933.0,0.72310145]
[1680561260996,0.02488,27934.0,27933.0,0.70520245]
[1680561261208,0.02488,27934.0,27933.0,0.60740418]
[1680561261661,0.02488,27934.0,27933.0,0.60722418]
[1680561261894,0.02488,27934.0,27933.0,0.60740418]
[1680561262748,0.02488,27934.0,27933.0,0.250869]
[1680561263014,0.02488,27934.0,27933.0,0.28661908]
[1680561263220,0.02488,27934.0,27933.0,0.28679908]
[1680561263561,0.02488,27934.0,27933.0,0.38679908]
[1680561263798,0.02488,27934.0,27933.0,0.73096007]
[1680561264157,0.02288,27934.0,27933.0,0.71292899]
[1680561264380,0.02488,27934.0,27933.0,0.263869]
[1680561264600,0.02288,27934.0,27933.0,0.250869]
[1680561264819,0.02488,27934.0,27933.0,0.66848438]
[1680561265037,0.02488,27934.0,27933.0,0.281768]
[1680561265494,0.02488,27934.0,27933.0,0.62266089]
[1680561266241,0.02488,27934.0,27933.0,0.263869]
[1680561266691,0.02488,27934.0,27933.0,0.80166481]
[1680561266888,0.02488,27934.0,27933.0,0.759768]
[1680561268278,0.02488,27934.0,27933.0,0.61406938]
[1680561268703,0.02488,27934.0,27933.0,0.60888938]
[1680561268942,0.02488,27934.0,27933.0,0.61388938]
[1680561269164,0.3,27942.0,27933.0,0.2519]
[1680561269385,0.003579,27940.0,27933.0,0.62669642]
[1680561269614,0.18977267,27940.0,27934.0,0.31361681]
[1680561269853,0.18977267,27940.0,27934.0,0.31379681]
[1680561270075,0.32718068,27942.0,27934.0,0.31379681]
[1680561270076,0.00768,27943.0,27936.0,0.57479642]
[1680561270303,0.002,27940.0,27937.0,0.20749681]
[1680561270526,0.002,27940.0,27938.0,0.0113]
[1680561270745,0.18587338,27942.0,27939.0,0.011029]
[1680561270958,0.002,27940.0,27938.0,0.1719]
[1680561271181,0.18593744,27939.0,27938.0,0.1719]
[1680561271393,0.18593744,27939.0,27938.0,0.01218]
[1680561271617,0.18593744,27939.0,27938.0,0.195652]
[1680561271856,0.18951644,27939.0,27938.0,0.01218]
[1680561272079,0.60091585,27939.0,27938.0,0.01218]
[1680561272299,0.60091585,27939.0,27938.0,0.012]
[1680561272300,0.60941585,27939.0,27938.0,0.012]
[1680561272515,1.85682868,27939.0,27938.0,0.012]
[1680561272737,1.90232804,27939.0,27935.0,0.00018]
[1680561272971,0.0075,27936.0,27934.0,0.35209537]
[1680561273197,0.24229295,27935.0,27934.0,0.35209537]
[1680561273967,0.24229295,27935.0,27934.0,0.01218]
[1680561274189,0.24229295,27935.0,27934.0,0.012]
[1680561274190,0.24477795,27935.0,27934.0,0.012]
[1680561274417,0.19718795,27935.0,27933.0,0.00018]
[1680561274645,0.24641195,27935.0,27934.0,0.012]
[1680561274876,0.19494995,27935.0,27934.0,0.19606415]
[1680561275105,0.19064995,27935.0,27934.0,0.19624415]
[1680561275552,0.18964995,27935.0,27934.0,0.18424415]
[1680561275778,0.19164995,27935.0,27934.0,0.17406415]
[1680561275999,0.18964995,27935.0,27934.0,0.17406415]
[1680561276460,0.18964995,27935.0,27934.0,0.18372]
[1680561276461,0.00086103,27935.0,27934.0,0.18372]
[1680561276715,0.00086103,27935.0,27934.0,0.61652042]
[1680561276948,0.19982,27928.0,27918.0,0.4582]
[1680561277186,0.19982,27925.0,27918.0,0.45826]
[1680561277408,0.061339,27922.0,27919.0,0.01428]
[1680561277640,0.061339,27922.0,27918.0,0.40644308]
[1680561277641,0.010744,27919.0,27918.0,0.40644308]
[1680561277884,0.010744,27919.0,27917.0,0.02104]
[1680561277885,0.0783941,27919.0,27917.0,0.02104]
[1680561278112,0.0644501,27919.0,27917.0,0.02098]
[1680561278332,0.0644501,27919.0,27918.0,0.01548]
[1680561278582,0.00018,27921.0,27920.0,0.00018]
[1680561278812,0.003761,27924.0,27920.0,0.00018]
[1680561279040,0.003761,27924.0,27920.0,0.14207681]
[1680561279041,0.04415743,27923.0,27920.0,0.14207681]
[1680561279261,0.04791843,27923.0,27921.0,0.44143254]
[1680561279490,0.09340664,27923.0,27921.0,0.44143254]
[1680561279719,0.09340664,27923.0,27920.0,0.00018]
[1680561280211,0.0032,27921.0,27920.0,0.00018]
[1680561280450,0.05829384,27921.0,27920.0,0.00018]
[1680561280675,0.26679384,27921.0,27917.0,0.35398338]
[1680561280899,0.04454227,27918.0,27917.0,0.35398338]
[1680561281199,0.05150327,27918.0,27917.0,0.35398338]
[1680561281536,0.06984695,27918.0,27917.0,0.0208]
[1680561281809,0.26980514,27918.0,27917.0,0.0238]
[1680561282086,0.00012,27919.0,27917.0,0.16569681]
[1680561282365,0.2,27926.0,27918.0,0.00018]
[1680561282670,0.07828532,27925.0,27921.0,0.00018]
[1680561282912,0.003581,27922.0,27921.0,0.00018]
[1680561283190,0.003581,27922.0,27918.0,0.17202]
[1680561283191,0.003581,27920.0,27918.0,0.17202]
[1680561283419,0.003581,27920.0,27917.0,0.0208]
[1680561283420,0.05279909,27918.0,27917.0,0.0208]
[1680561283640,0.09814952,27918.0,27917.0,0.0208]
[1680561284757,0.09914952,27918.0,27917.0,0.0208]
[1680561286911,0.03460643,27918.0,27917.0,0.0208]
[1680561287120,0.03560643,27918.0,27917.0,0.41960536]
[1680561288032,0.0032,27921.0,27917.0,0.59144536]
[1680561288268,0.05056651,27923.0,27917.0,0.59144536]
[1680561288269,0.001,27918.0,27917.0,0.56233749]
[1680561288490,0.03454228,27920.0,27917.0,0.21055]
[1680561289855,0.03370856,27927.0,27925.0,0.17178]
[1680561290301,0.03370856,27927.0,27926.0,0.39413927]
[1680561290735,0.03370856,27927.0,27926.0,0.40535647]
[1680561291163,0.03670856,27927.0,27926.0,0.40535647]
[1680561291389,0.03370856,27927.0,27926.0,0.40535647]
[1680561291613,0.00018,27931.0,27930.0,0.00018]
[1680561291852,1.47897745,27935.0,27930.0,0.14207681]
[1680561292071,0.2424238,27934.0,27931.0,0.14189681]
[1680561292322,0.00018,27934.0,27931.0,0.31367681]
[1680561292566,0.18078309,27937.0,27932.0,0.65442]